fUST/lending_fUST_20240225
["ID","MTS","AMOUNT","RATE_DAILY","PERIOD"]
[315107020,1708827618643,-501.62951788,0.00019178,2]
[315107021,1708827618663,-500.36783975,0.00019178,2]
[315107022,1708827618683,-501.53781193,0.00019178,2]
[315107023,1708827618703,-500.59768384,0.00019178,2]
[315107024,1708827618723,-445.85599083,0.00019178,2]
[315107025,1708827618744,-501.42454899,0.00019178,2]
[315107026,1708827618764,-500.52544546,0.00019178,2]
[315107027,1708827618787,-500.0,0.00019178,2]
[315107028,1708827618808,-500.0,0.00019178,2]
[315107029,1708827618829,-607.29732845,0.00019178,2]
[315107030,1708827618850,-500.35166173,0.00019178,2]
[315107031,1708827618872,-500.0,0.00019178,2]
[315107032,1708827618893,-500.0,0.00019178,2]
[315107033,1708827618914,-497.28656827,0.00019178,2]
[315107034,1708827618936,-500.0,0.00019178,2]
[315107035,1708827618959,-188.19,0.00019178,2]
[315107036,1708827618980,-500.27867122,0.00019178,2]
[315107037,1708827619001,-503.79673122,0.00019178,2]
[315107038,1708827619023,-500.0,0.00019178,2]
[315107039,1708827619044,-503.64870293,0.00019178,2]
[315107040,1708827619066,-352.51950847,0.00019178,2]
[315107041,1708827619087,-938.8,0.00019178,2]
[315107042,1708827619108,-385.07513965,0.00019178,2]
[315107043,1708827619129,-591.48744329,0.00019178,2]
[315107044,1708827619149,-550.29721747,0.00019178,2]
[315107045,1708827619170,-500.0,0.00019178,2]
[315107046,1708827619190,-500.0,0.00019178,2]
[315107047,1708827619212,-9028.48,0.00019178,2]
[315107048,1708827619234,-500.5677814,0.00019178,2]
[315107049,1708827619254,-500.0,0.00019178,2]
[315107050,1708827619279,-500.0,0.00019178,2]
[315107051,1708827619298,-500.0,0.00019178,2]
[315107052,1708827619319,-501.46781315,0.00019178,2]
[315107053,1708827619338,-500.28098857,0.00019178,2]
[315107054,1708827619359,-442.3992256,0.00019178,2]
[315107055,1708827619380,-500.0,0.00019178,2]
[315107056,1708827619401,-502.54722801,0.00019178,2]
[315107057,1708827619422,-500.0,0.00019178,2]
[315107058,1708827619442,-154.93248734,0.00019178,2]
[315107181,1708827951765,7673.0581418,0.00018096,2]
[315107189,1708828029145,-154.87609912,0.00018889,2]
[315107190,1708828029166,-345.12390088,0.0001889,2]
[315107191,1708828054094,-154.8915759,0.00018889,2]
[315107192,1708828054114,-332.29173712,0.0001889,2]
[315107193,1708828054134,-537.81365752,0.00018891,2]
[315107194,1708828054154,-2420.76590521,0.00018892,2]
[315107195,1708828137622,10000.0,0.000182,2]
[315107196,1708828146658,10000.0,0.000182,2]
[315107197,1708828151099,-2287.42695366,0.00018892,2]
[315107198,1708828151119,-191.00592619,0.000189,2]
[315107199,1708828153324,3128.00000294,0.000182,2]
[315107200,1708828160738,10000.0,0.000181,2]
[315107201,1708828166936,10000.0,0.000181,2]
[315107202,1708828174265,10000.0,0.000181,2]
[315107203,1708828180201,10000.0,0.000181,2]
[315107204,1708828186452,10000.0,0.000181,2]
[315107205,1708828192082,10000.0,0.000181,2]
[315107206,1708828202787,1454.17,0.000181,2]
[315107345,1708828238338,-6871.99999706,0.000182,2]
[315107346,1708828238348,-159.896641,0.00018614,2]
[315107347,1708828238357,-696.02473057,0.000189,2]
[315107348,1708828238367,-199.95068967,0.00019078,2]
[315107349,1708828238377,-627.25720671,0.0001913,2]
[315107350,1708828238387,-194.48778112,0.00019176,2]
[315107351,1708828238397,-767.31125678,0.00019176,2]
[315107352,1708828238406,-500.0,0.00019177,2]
[315107353,1708828238415,-346.33709717,0.00019178,2]
[315107354,1708828238425,-500.0,0.00019178,2]
[315107355,1708828238435,-224.21370726,0.00019178,2]
[315107356,1708828238446,-500.5271212,0.00019178,2]
[315107357,1708828238456,-500.0,0.00019178,2]
[315107358,1708828238465,-500.0,0.00019178,2]
[315107359,1708828238475,-504.21470408,0.00019178,2]
[315107360,1708828238485,-500.0,0.00019178,2]
[315107361,1708828238495,-408.16411525,0.00019178,2]
[315107362,1708828238506,-500.0,0.00019178,2]
[315107363,1708828238515,-500.0,0.00019178,2]
[315107364,1708828238526,-500.0,0.00019178,2]
[315107365,1708828238535,-500.0,0.00019178,2]
[315107366,1708828238544,-368.47185558,0.00019178,2]
[315107367,1708828238555,-500.0,0.00019178,2]
[315107368,1708828238565,-500.0,0.00019178,2]
[315107369,1708828238575,-500.0,0.00019178,2]
[315107370,1708828238584,-500.0,0.00019178,2]
[315107371,1708828238594,-500.0,0.00019178,2]
[315107372,1708828238604,-500.0,0.00019178,2]
[315107373,1708828238614,-647.34,0.00019178,2]
[315107374,1708828238624,-500.53244345,0.00019178,2]
[315107375,1708828238634,-500.0,0.00019178,2]
[315107376,1708828238645,-500.0,0.00019178,2]
[315107377,1708828238654,-500.45849699,0.00019178,2]
[315107378,1708828238666,-500.0,0.00019178,2]
[315107379,1708828238675,-500.30722818,0.00019178,2]
[315107380,1708828238684,-500.0,0.00019178,2]
[315107381,1708828238694,-500.0,0.00019178,2]
[315107382,1708828238705,-500.0,0.00019178,2]
[315107383,1708828238714,-500.0,0.00019178,2]
[315107384,1708828238723,-500.0,0.00019178,2]
[315107385,1708828238734,-500.0,0.00019178,2]
[315107386,1708828238744,-500.0,0.00019178,2]
[315107387,1708828238755,-500.0,0.00019178,2]
[315107388,1708828238764,-500.0,0.00019178,2]
[315107389,1708828238775,-500.61204648,0.00019178,2]
[315107390,1708828238785,-500.0,0.00019178,2]
[315107391,1708828238794,-649.11733101,0.00019178,2]
[315107392,1708828238803,-500.43646145,0.00019178,2]
[315107393,1708828238812,-500.0,0.00019178,2]
[315107394,1708828238821,-501.05713696,0.00019178,2]
[315107395,1708828238831,-501.51398637,0.00019178,2]
[315107396,1708828238841,-500.0,0.00019178,2]
[315107397,1708828238850,-234.52147682,0.00019178,2]
[315107398,1708828238860,-500.92354226,0.00019178,2]
[315107399,1708828238870,-500.0,0.00019178,2]
[315107400,1708828238880,-500.34278098,0.00019178,2]
[315107401,1708828238889,-500.0,0.00019178,2]
[315107402,1708828238899,-500.0,0.00019178,2]
[315107403,1708828238908,-500.0,0.00019178,2]
[315107404,1708828238918,-500.0,0.00019178,2]
[315107405,1708828238928,-266.29835762,0.00019178,2]
[315107406,1708828238937,-500.71181132,0.00019178,2]
[315107407,1708828238947,-500.0,0.00019178,2]
[315107408,1708828238956,-500.0,0.00019178,2]
[315107409,1708828238965,-500.0,0.00019178,2]
[315107410,1708828238975,-500.0,0.00019178,2]
[315107411,1708828238984,-500.0,0.00019178,2]
[315107412,1708828238994,-500.0,0.00019178,2]
[315107413,1708828239004,-500.0,0.00019178,2]
[315107414,1708828239013,-500.0,0.00019178,2]
[315107415,1708828239025,-151.0,0.00019178,2]
[315107416,1708828239034,-500.0,0.00019178,2]
[315107417,1708828239044,-500.0,0.00019178,2]
[315107418,1708828239053,-500.0,0.00019178,2]
[315107419,1708828239062,-500.0,0.00019178,2]
[315107420,1708828239072,-500.0,0.00019178,2]
[315107421,1708828239081,-500.0,0.00019178,2]
[315107422,1708828239090,-500.0,0.00019178,2]
[315107423,1708828239100,-500.0,0.00019178,2]
[315107424,1708828239110,-500.0,0.00019178,2]
[315107425,1708828239119,-500.0,0.00019178,2]
[315107426,1708828239128,-500.0,0.00019178,2]
[315107427,1708828239138,-500.0,0.00019178,2]
[315107428,1708828239147,-500.0,0.00019178,2]
[315107429,1708828239156,-500.0,0.00019178,2]
[315107430,1708828239166,-566.74439129,0.00019178,2]
[315107431,1708828239175,-539.53845136,0.00019178,2]
[315107432,1708828239184,-563.57,0.00019178,2]
[315107433,1708828239193,-500.0,0.00019178,2]
[315107434,1708828239203,-643.45165925,0.00019178,2]
[315107435,1708828239212,-500.44649528,0.00019178,2]
[315107436,1708828239222,-500.0,0.00019178,2]
[315107437,1708828239231,-500.0,0.00019178,2]
[315107438,1708828239240,-500.0,0.00019178,2]
[315107439,1708828239250,-500.0,0.00019178,2]
[315107440,1708828239259,-575.51,0.00019178,2]
[315107441,1708828239268,-500.0,0.00019178,2]
[315107442,1708828239279,-500.0,0.00019178,2]
[315107443,1708828239289,-503.80536449,0.00019178,2]
[315107444,1708828239299,-500.0,0.00019178,2]
[315107445,1708828239310,-1090.89,0.00019178,2]
[315107446,1708828239320,-500.0,0.00019178,2]
[315107447,1708828239329,-500.0,0.00019178,2]
[315107448,1708828239339,-500.0,0.00019178,2]
[315107449,1708828239349,-500.0,0.00019178,2]
[315107450,1708828239359,-500.0,0.00019178,2]
[315107451,1708828239368,-500.0,0.00019178,2]
[315107452,1708828239377,-513.53288139,0.00019178,2]
[315107453,1708828239387,-500.0,0.00019178,2]
[315107454,1708828239397,-500.0,0.00019178,2]
[315107455,1708828239406,-500.0,0.00019178,2]
[315107456,1708828239416,-308.92970751,0.00019178,2]
[315107457,1708828239425,-500.0,0.00019178,2]
[315107458,1708828239434,-500.0,0.00019178,2]
[315107459,1708828239443,-500.49507386,0.00019178,2]
[315107460,1708828239453,-504.84228172,0.00019178,2]
[315107461,1708828239462,-500.0,0.00019178,2]
[315107462,1708828239471,-500.0,0.00019178,2]
[315107463,1708828239481,-923.56,0.00019178,2]
[315107464,1708828239490,-923.56,0.00019178,2]
[315107465,1708828239499,-1000.0,0.00019178,2]
[315107466,1708828239509,-923.56,0.00019178,2]
[315107467,1708828239518,-923.56,0.00019178,2]
[315107468,1708828239528,-501.25863016,0.00019178,2]
[315107469,1708828239540,-500.91261695,0.00019178,2]
[315107470,1708828239549,-500.0,0.00019178,2]
[315107471,1708828239559,-480.3429519,0.00019178,2]
[315107472,1708828239569,-500.0,0.00019178,2]
[315107473,1708828239578,-500.0,0.00019178,2]
[315107474,1708828239588,-500.0,0.00019178,2]
[315107475,1708828239597,-500.0,0.00019178,2]
[315107476,1708828239606,-500.0,0.00019178,2]
[315107477,1708828239616,-500.0,0.00019178,2]
[315107478,1708828239626,-500.0,0.00019178,2]
[315107479,1708828239635,-500.72157887,0.00019178,2]
[315107480,1708828239646,-500.0,0.00019178,2]
[315107481,1708828239655,-500.0,0.00019178,2]
[315107482,1708828239668,-500.0,0.00019178,2]
[315107483,1708828239677,-500.0,0.00019178,2]
[315107484,1708828239686,-584.59362957,0.00019178,2]
[315107485,1708828239698,-500.0,0.00019178,2]
[315107486,1708828239709,-500.0,0.00019178,2]
[315107487,1708828239720,-500.0,0.00019178,2]
[315107488,1708828239729,-500.0,0.00019178,2]
[315107489,1708828239740,-1959.19,0.00019178,2]
[315107490,1708828239750,-500.82343001,0.00019178,2]
[315107491,1708828239760,-355.28600445,0.00019178,2]
[315107492,1708828239769,-500.0,0.00019178,2]
[315107493,1708828239779,-500.0,0.00019178,2]
[315107494,1708828239788,-500.0,0.00019178,2]
[315107495,1708828239798,-640.29137298,0.00019178,2]
[315107496,1708828239807,-500.0,0.00019178,2]
[315107497,1708828239816,-500.0,0.00019178,2]
[315107498,1708828239825,-942.22,0.00019178,2]
[315107499,1708828239836,-500.0,0.00019178,2]
[315107500,1708828239847,-500.62885476,0.00019178,2]
[315107501,1708828239857,-500.0,0.00019178,2]
[315107502,1708828239866,-500.0,0.00019178,2]
[315107503,1708828239875,-500.0,0.00019178,2]
[315107504,1708828239884,-500.0,0.00019178,2]
[315107505,1708828239894,-500.5990605,0.00019178,2]
[315107506,1708828239903,-1783.62,0.00019178,2]
[315107507,1708828239912,-556.58939169,0.00019178,2]
[315107508,1708828239921,-500.0,0.00019178,2]
[315107509,1708828239929,-500.0,0.00019178,2]
[315107510,1708828239939,-500.0,0.00019178,2]
[315107511,1708828239948,-618.09332603,0.00019178,2]
[315107512,1708828239957,-500.0,0.00019178,2]
[315107513,1708828239966,-500.0,0.00019178,2]
[315107514,1708828239975,-500.0,0.00019178,2]
[315107515,1708828239984,-515.28596672,0.00019178,2]
[315107516,1708828239993,-500.0,0.00019178,2]
[315107517,1708828240002,-500.0,0.00019178,2]
[315107518,1708828240011,-500.0,0.00019178,2]
[315107519,1708828240022,-500.38903503,0.00019178,2]
[315107520,1708828240031,-500.0,0.00019178,2]
[315107521,1708828240040,-500.0,0.00019178,2]
[315107522,1708828240050,-500.0,0.00019178,2]
[315107523,1708828240061,-500.0,0.00019178,2]
[315107524,1708828240070,-500.0,0.00019178,2]
[315107525,1708828240082,-500.0,0.00019178,2]
[315107526,1708828240090,-500.0,0.00019178,2]
[315107527,1708828240101,-500.0,0.00019178,2]
[315107528,1708828240111,-500.0,0.00019178,2]
[315107529,1708828240120,-497.28656827,0.00019178,2]
[315107530,1708828240130,-500.0,0.00019178,2]
[315107531,1708828240139,-500.47669516,0.00019178,2]
[315107532,1708828240149,-500.46733772,0.00019178,2]
[315107533,1708828240159,-500.0,0.00019178,2]
[315107534,1708828240169,-500.0,0.00019178,2]
[315107535,1708828240178,-500.0,0.00019178,2]
[315107536,1708828240188,-500.0,0.00019178,2]
[315107537,1708828240197,-500.0,0.00019178,2]
[315107538,1708828240206,-500.0,0.00019178,2]
[315107539,1708828240217,-500.0,0.00019178,2]
[315107540,1708828240226,-500.0,0.00019178,2]
[315107541,1708828240236,-500.0,0.00019178,2]
[315107542,1708828240245,-500.0,0.00019178,2]
[315107543,1708828240255,-500.0,0.00019178,2]
[315107544,1708828240265,-500.0,0.00019178,2]
[315107545,1708828240277,-331.61568185,0.00019178,2]
[315107546,1708828240287,-500.0,0.00019178,2]
[315107547,1708828240297,-291.98688336,0.00019178,2]
[315107548,1708828240307,-500.0,0.00019178,2]
[315107549,1708828240317,-500.0,0.00019178,2]
[315107550,1708828240327,-500.9329859,0.00019178,2]
[315107551,1708828240336,-500.0,0.00019178,2]
[315107552,1708828240346,-1176.31,0.00019178,2]
[315107553,1708828240356,-500.0,0.00019178,2]
[315107554,1708828240365,-500.0,0.00019178,2]
[315107555,1708828240375,-1609.09,0.00019178,2]
[315107556,1708828240385,-500.0,0.00019178,2]
[315107557,1708828240394,-500.0,0.00019178,2]
[315107558,1708828240404,-500.0,0.00019178,2]
[315107559,1708828240413,-500.0,0.00019178,2]
[315107560,1708828240423,-500.0,0.00019178,2]
[315107561,1708828240433,-929.0,0.00019178,2]
[315107562,1708828240442,-1043.36,0.00019178,2]
[315107563,1708828240452,-500.0,0.00019178,2]
[315107564,1708828240462,-614.7457335,0.00019178,2]
[315107566,1708828240471,-478.86577409,0.00019178,2]
[315107567,1708828240481,-500.0,0.00019178,2]
[315107568,1708828240491,-502.15109271,0.00019178,2]
[315107569,1708828240500,-1248.48,0.00019178,2]
[315107570,1708828240510,-500.0,0.00019178,2]
[315107571,1708828240520,-500.0,0.00019178,2]
[315107572,1708828240530,-501.9392003,0.00019178,2]
[315107574,1708828240541,-500.0,0.00019178,2]
[315107576,1708828240550,-501.72569736,0.00019178,2]
[315107578,1708828240560,-500.83585471,0.00019178,2]
[315107579,1708828240569,-500.0,0.00019178,2]
[315107581,1708828240578,-500.50769641,0.00019178,2]
[315107583,1708828240588,-500.0,0.00019178,2]
[315107584,1708828240597,-500.0,0.00019178,2]
[315107585,1708828240606,-232.98568571,0.00019178,2]
[315107586,1708828240616,-500.0,0.00019178,2]
[315107587,1708828240626,-501.87606663,0.00019178,2]
[315107588,1708828240636,-1611.78,0.00019178,2]
[315107589,1708828240645,-500.0,0.00019178,2]
[315107591,1708828240654,-500.0,0.00019178,2]
[315107593,1708828240666,-500.0,0.00019178,2]
[315107595,1708828240675,-500.0,0.00019178,2]
[315107596,1708828240684,-500.5525622,0.00019178,2]
[315107597,1708828240693,-500.0,0.00019178,2]
[315107598,1708828240702,-500.0,0.00019178,2]
[315107599,1708828240711,-500.0,0.00019178,2]
[315107600,1708828240721,-364.45423613,0.00019178,2]
[315107601,1708828240730,-1105.75,0.00019178,2]
[315107602,1708828240741,-500.0,0.00019178,2]
[315107603,1708828240750,-500.0,0.00019178,2]
[315107604,1708828240758,-500.0,0.00019178,2]
[315107605,1708828240767,-644.81275899,0.00019178,2]
[315107606,1708828240777,-500.0,0.00019178,2]
[315107607,1708828240786,-303.32427151,0.00019178,2]
[315107608,1708828240795,-500.0,0.00019178,2]
[315107609,1708828240804,-500.0,0.00019178,2]
[315107610,1708828240917,-500.0,0.00019178,2]
[315107611,1708828240926,-1414.12,0.00019178,2]
[315107612,1708828240936,-500.0,0.00019178,2]
[315107613,1708828240945,-500.0,0.00019178,2]
[315107614,1708828240954,-500.0,0.00019178,2]
[315107615,1708828240963,-7810.53,0.00019178,2]
[315107616,1708828240972,-500.0,0.00019178,2]
[315107617,1708828240981,-500.67810828,0.00019178,2]
[315107618,1708828240991,-500.0,0.00019178,2]
[315107619,1708828241000,-500.0,0.00019178,2]
[315107620,1708828241011,-9338.08,0.00019178,2]
[315107621,1708828241020,-242.68643085,0.00019178,2]
[315107622,1708828241029,-500.0,0.00019178,2]
[315107623,1708828241039,-442.3992256,0.00019178,2]
[315107624,1708828241048,-377.86302329,0.00019178,2]
[315107625,1708828241057,-500.0,0.00019178,2]
[315107626,1708828241066,-500.0,0.00019178,2]
[315107627,1708828241075,-500.0,0.00019178,2]
[315107628,1708828241084,-368.48758608,0.00019178,2]
[315107629,1708828241094,-500.0,0.00019178,2]
[315107630,1708828241103,-500.0,0.00019178,2]
[315107631,1708828241113,-500.0,0.00019178,2]
[315107632,1708828241122,-198.58317025,0.00019178,2]
[315107633,1708828241131,-500.0,0.00019178,2]
[315107634,1708828241140,-500.0,0.00019178,2]
[315107635,1708828241150,-500.0,0.00019178,2]
[315107636,1708828241159,-500.0,0.00019178,2]
[315107637,1708828241168,-500.0,0.00019178,2]
[315107638,1708828241177,-500.0,0.00019178,2]
[315107639,1708828241186,-500.0,0.00019178,2]
[315107640,1708828241195,-500.0,0.00019178,2]
[315107641,1708828241204,-500.0,0.00019178,2]
[315107642,1708828241214,-500.0,0.00019178,2]
[315107643,1708828241223,-500.0,0.00019178,2]
[315107644,1708828241233,-500.0,0.00019178,2]
[315107645,1708828241242,-500.0,0.00019178,2]
[315107646,1708828241251,-500.0,0.00019178,2]
[315107647,1708828241261,-249.37443593,0.00019178,2]
[315107648,1708828241271,-501.28424809,0.00019178,2]
[315107649,1708828241280,-500.0,0.00019178,2]
[315107650,1708828241290,-500.0,0.00019178,2]
[315107651,1708828241299,-500.0,0.00019178,2]
[315107652,1708828241309,-500.0,0.00019178,2]
[315107653,1708828241318,-500.0,0.00019178,2]
[315107654,1708828241328,-500.0,0.00019178,2]
[315107655,1708828241337,-500.0,0.00019178,2]
[315107656,1708828241346,-500.0,0.00019178,2]
[315107657,1708828241356,-500.0,0.00019178,2]
[315107658,1708828241365,-500.0,0.00019178,2]
[315107659,1708828241374,-500.0,0.00019178,2]
[315107660,1708828241384,-500.0,0.00019178,2]
[315107662,1708828241393,-500.0,0.00019178,2]
[315107663,1708828241402,-533.97867133,0.00019178,2]
[315107665,1708828241411,-500.0,0.00019178,2]
[315107667,1708828241421,-500.0,0.00019178,2]
[315107669,1708828241430,-500.0,0.00019178,2]
[315107670,1708828241439,-500.0,0.00019178,2]
[315107671,1708828241448,-500.0,0.00019178,2]
[315107672,1708828241456,-500.0,0.00019178,2]
[315107673,1708828241465,-500.0,0.00019178,2]
[315107674,1708828241474,-500.0,0.00019178,2]
[315107675,1708828241483,-500.0,0.00019178,2]
[315107676,1708828241492,-500.0,0.00019178,2]
[315107677,1708828241501,-500.0,0.00019178,2]
[315107678,1708828241511,-500.0,0.00019178,2]
[315107679,1708828241520,-500.0,0.00019178,2]
[315107680,1708828241531,-500.0,0.00019178,2]
[315107681,1708828241540,-500.0,0.00019178,2]
[315107682,1708828241550,-500.0,0.00019178,2]
[315107683,1708828241559,-500.0,0.00019178,2]
[315107684,1708828241569,-500.0,0.00019178,2]
[315107685,1708828241578,-500.0,0.00019178,2]
[315107686,1708828241588,-500.0,0.00019178,2]
[315107687,1708828241597,-1937.6,0.00019178,2]
[315107688,1708828241606,-500.0,0.00019178,2]
[315107690,1708828241616,-419.42100893,0.00019178,2]
[315107691,1708828241625,-500.0,0.00019178,2]
[315107693,1708828241634,-500.0,0.00019178,2]
[315107694,1708828241643,-500.0,0.00019178,2]
[315107695,1708828241653,-500.0,0.00019178,2]
[315107696,1708828241665,-500.0,0.00019178,2]
[315107697,1708828241674,-500.0,0.00019178,2]
[315107698,1708828241684,-500.0,0.00019178,2]
[315107699,1708828241693,-500.0,0.00019178,2]
[315107700,1708828241702,-500.0,0.00019178,2]
[315107701,1708828241713,-500.0,0.00019178,2]
[315107702,1708828241722,-501.07550028,0.00019178,2]
[315107703,1708828241732,-500.0,0.00019178,2]
[315107704,1708828241742,-500.19563633,0.00019178,2]
[315107705,1708828241751,-5745.19,0.00019178,2]
[315107706,1708828241761,-329.97857268,0.00019178,2]
[315107707,1708828241770,-500.0,0.00019178,2]
[315107708,1708828241780,-500.0,0.00019178,2]
[315107709,1708828241789,-501.47435516,0.00019178,2]
[315107710,1708828241799,-500.0,0.00019178,2]
[315107711,1708828241808,-500.0,0.00019178,2]
[315107712,1708828241817,-647.50116398,0.00019178,2]
[315107713,1708828241827,-283.11226416,0.00019178,2]
[315107714,1708828241837,-501.92032583,0.00019178,2]
[315107715,1708828241846,-345.65146917,0.00019178,2]
[315107716,1708828241855,-500.48785779,0.00019178,2]
[315107717,1708828241865,-500.0,0.00019178,2]
[315107718,1708828241874,-500.81653216,0.00019178,2]
[315107719,1708828241883,-500.0,0.00019178,2]
[315107720,1708828241892,-500.0,0.00019178,2]
[315107721,1708828241902,-500.0,0.00019178,2]
[315107722,1708828241911,-500.32248464,0.00019178,2]
[315107723,1708828241921,-500.0,0.00019178,2]
[315107724,1708828241931,-500.0,0.00019178,2]
[315107725,1708828241940,-2553.98,0.00019178,2]
[315107726,1708828241949,-500.0,0.00019178,2]
[315107727,1708828241958,-500.0,0.00019178,2]
[315107728,1708828241967,-500.0,0.00019178,2]
[315107729,1708828241976,-500.0,0.00019178,2]
[315107730,1708828241985,-500.0,0.00019178,2]
[315107731,1708828241994,-485.43702138,0.00019178,2]
[315107732,1708828242003,-500.0,0.00019178,2]
[315107733,1708828242012,-500.0,0.00019178,2]
[315107734,1708828242021,-500.0,0.00019178,2]
[315107735,1708828242032,-760.81,0.00019178,2]
[315107736,1708828242041,-729.29,0.00019178,2]
[315107737,1708828242050,-500.0,0.00019178,2]
[315107738,1708828242060,-500.0,0.00019178,2]
[315107739,1708828242070,-500.0,0.00019178,2]
[315107740,1708828242080,-500.0,0.00019178,2]
[315107741,1708828242090,-500.56615339,0.00019178,2]
[315107742,1708828242101,-187.20221519,0.00019178,2]
[315107743,1708828242112,-296.66762337,0.00019178,2]
[315107744,1708828242121,-500.0,0.00019178,2]
[315107745,1708828242131,-502.10212227,0.00019178,2]
[315107746,1708828242141,-500.49698402,0.00019178,2]
[315107747,1708828242151,-3559.22,0.00019178,2]
[315107748,1708828242161,-500.46665886,0.00019178,2]
[315107749,1708828242173,-500.0,0.00019178,2]
[315107750,1708828242183,-1633.32,0.00019178,2]
[315107751,1708828242193,-500.0,0.00019178,2]
[315107752,1708828242203,-716.21,0.00019178,2]
[315107753,1708828242212,-500.45944832,0.00019178,2]
[315107754,1708828242222,-540.76,0.00019178,2]
[315107755,1708828242231,-6647.46,0.00019178,2]
[315107756,1708828242240,-500.71596615,0.00019178,2]
[315107757,1708828242257,-500.0,0.00019178,2]
[315107758,1708828242271,-500.0,0.00019178,2]
[315107759,1708828242282,-500.0,0.00019178,2]
[315107760,1708828242292,-500.36783975,0.00019178,2]
[315107761,1708828242301,-506.70986665,0.00019178,2]
[315107762,1708828242311,-500.0,0.00019178,2]
[315107763,1708828242321,-794.75,0.00019178,2]
[315107764,1708828242330,-1251.59,0.00019178,2]
[315107765,1708828242339,-1747.6,0.00019178,2]
[315107766,1708828242349,-500.0,0.00019178,2]
[315107767,1708828242359,-183.137522,0.00019178,2]
[315107768,1708828242370,-180.7130468,0.00019178,2]
[315107769,1708828242381,-166.666666,0.00019178,2]
[315107770,1708828242392,-500.0,0.00019232,2]
[315107771,1708828242403,-500.0,0.00019287,2]
[315107772,1708828242414,-224.999,0.00019296,2]
[315107773,1708828242425,-224.999,0.00019296,2]
[315107774,1708828242436,-224.999,0.00019296,2]
[315107775,1708828242447,-225.0,0.00019296,2]
[315107776,1708828242458,-224.999,0.00019296,2]
[315107777,1708828242470,-72053.27142405,0.0001933,2]
[315107778,1708828242481,-500.0,0.00019342,2]
[315107779,1708828242493,-500.0,0.00019346,2]
[315107780,1708828242504,-500.0,0.00019347,2]
[315107781,1708828242515,-923.56,0.00019348,2]
[315107782,1708828242529,-923.56,0.00019348,2]
[315107783,1708828242541,-132849.40598859,0.00019351,2]
[315107784,1708828242552,-999.6258381,0.00019351,2]
[315107785,1708828242566,-1518.81378183,0.00019351,2]
[315107786,1708828242577,-923.56,0.00019351,2]
[315107787,1708828242588,-923.56,0.00019351,2]
[315107788,1708828242599,-923.56,0.00019351,2]
[315107789,1708828242610,-500.0,0.00019396,2]
[315107790,1708828242621,-155.52322566,0.00019449,2]
[315107791,1708828242631,-622.57898342,0.0001945,2]
[315107792,1708828242641,-500.0,0.00019451,2]
[315107793,1708828242655,-923.56,0.00019451,2]
[315107794,1708828242665,-923.56,0.00019451,2]
[315107795,1708828242675,-923.56,0.00019451,2]
[315107796,1708828242687,-500.0,0.00019451,2]
[315107797,1708828242697,-500.0,0.00019451,2]
[315107798,1708828242708,-500.0,0.00019451,2]
[315107799,1708828242718,-201.73137709,0.00019452,2]
[315107800,1708828242728,-500.0,0.00019452,2]
[315107801,1708828242738,-403.96917121,0.00019452,2]